Workbook

Sheet Eingabe Lohnabrechnung
B1: LOHN- UND GEHALTSRECHNER | K1: ZEITRAUM ENDET: | L1: 41372 | N1: FIRMENNAME: | P1: ADVENTURE WORKS
B3: ID | C3: Name des Mitarbeiters | D3: Reguläre Arbeitsstunden | E3: Urlaubsstunden | F3: Krankheitsstunden | G3: Überstunden | H3: Überstundensatz | I3: Bruttozahlung | J3: Steuern und Abzüge | K3: Sonstige Steuern und Abzüge | L3: Nettozahlung | N3: Stundenlohn | O3: Steuerstatus | P3: Staat. Zulage | Q3: Gewerbesteuer | R3: Einkommensteuer | S3: Altersvorsorge | T3: Krankenversicherung | U3: Einbehaltene Steuern gesamt | V3: Abzüge für Versicherungen | W3: Sonstige reguläre Abzüge | X3: Reguläre Abzüge gesamt
B4: 1001 | C4: Thorsten Scholl | D4: 50 | E4: 5 | F4: 1 | I4: =SUM(Mitarbeiter[[#This Row],[Reguläre Arbeitsstunden]:[Krankheitsstunden]])*Mitarbeiter[[#This Row],[Stundenlohn]]+Mitarbeiter[[#This Row],[Überstunden]]*Mitarbeiter[[#This Row],[Überstundensatz]] -> 560 | J4: =Mitarbeiter[[#This Row],[Bruttozahlung]]*Mitarbeiter[[#This Row],[Einbehaltene Steuern gesamt]]+ Mitarbeiter[[#This Row],[Reguläre Abzüge gesamt]] -> 273.08 | K4: 20 | L4: =Mitarbeiter[[#This Row],[Bruttozahlung]]-Mitarbeiter[[#This Row],[Steuern und Abzüge]]-Mitarbeiter[[#This Row],[Sonstige Steuern und Abzüge]] -> 266.92 | N4: 10 | O4: 1 | P4: 4 | Q4: 0.023 | R4: 0.28 | S4: 0.063 | T4: 0.0145 | U4: =SUM(Mitarbeiter[[#This Row],[Gewerbesteuer]:[Krankenversicherung]]) -> 0.3805 | V4: 20 | W4: 40 | X4: =SUM(Mitarbeiter[[#This Row],[Abzüge für Versicherungen]:[Sonstige reguläre Abzüge]]) -> 60
B5: 1002 | C5: David Probst | D5: 40 | I5: =SUM(Mitarbeiter[[#This Row],[Reguläre Arbeitsstunden]:[Krankheitsstunden]])*Mitarbeiter[[#This Row],[Stundenlohn]]+Mitarbeiter[[#This Row],[Überstunden]]*Mitarbeiter[[#This Row],[Überstundensatz]] -> 320 | J5: =Mitarbeiter[[#This Row],[Bruttozahlung]]*Mitarbeiter[[#This Row],[Einbehaltene Steuern gesamt]]+ Mitarbeiter[[#This Row],[Reguläre Abzüge gesamt]] -> 131.76 | L5: =Mitarbeiter[[#This Row],[Bruttozahlung]]-Mitarbeiter[[#This Row],[Steuern und Abzüge]]-Mitarbeiter[[#This Row],[Sonstige Steuern und Abzüge]] -> 188.24 | N5: 8 | O5: 1 | P5: 1 | Q5: 0.023 | R5: 0.28 | S5: 0.063 | T5: 0.0145 | U5: =SUM(Mitarbeiter[[#This Row],[Gewerbesteuer]:[Krankenversicherung]]) -> 0.3805 | V5: 0 | W5: 10 | X5: =SUM(Mitarbeiter[[#This Row],[Abzüge für Versicherungen]:[Sonstige reguläre Abzüge]]) -> 10
B6: 1003 | C6: Anja Richter | D6: 35 | E6: 3 | I6: =SUM(Mitarbeiter[[#This Row],[Reguläre Arbeitsstunden]:[Krankheitsstunden]])*Mitarbeiter[[#This Row],[Stundenlohn]]+Mitarbeiter[[#This Row],[Überstunden]]*Mitarbeiter[[#This Row],[Überstundensatz]] -> 532 | J6: =Mitarbeiter[[#This Row],[Bruttozahlung]]*Mitarbeiter[[#This Row],[Einbehaltene Steuern gesamt]]+ Mitarbeiter[[#This Row],[Reguläre Abzüge gesamt]] -> 240.426 | L6: =Mitarbeiter[[#This Row],[Bruttozahlung]]-Mitarbeiter[[#This Row],[Steuern und Abzüge]]-Mitarbeiter[[#This Row],[Sonstige Steuern und Abzüge]] -> 291.574 | N6: 14 | O6: 1 | P6: 3 | Q6: 0.023 | R6: 0.28 | S6: 0.063 | T6: 0.0145 | U6: =SUM(Mitarbeiter[[#This Row],[Gewerbesteuer]:[Krankenversicherung]]) -> 0.3805 | V6: 18 | W6: 20 | X6: =SUM(Mitarbeiter[[#This Row],[Abzüge für Versicherungen]:[Sonstige reguläre Abzüge]]) -> 38
B7: 1008 | C7: Sebastian Mäurer | D7: 50 | E7: 5 | F7: 1 | I7: =SUM(Mitarbeiter[[#This Row],[Reguläre Arbeitsstunden]:[Krankheitsstunden]])*Mitarbeiter[[#This Row],[Stundenlohn]]+Mitarbeiter[[#This Row],[Überstunden]]*Mitarbeiter[[#This Row],[Überstundensatz]] -> 1120 | J7: =Mitarbeiter[[#This Row],[Bruttozahlung]]*Mitarbeiter[[#This Row],[Einbehaltene Steuern gesamt]]+ Mitarbeiter[[#This Row],[Reguläre Abzüge gesamt]] -> 441.16 | L7: =Mitarbeiter[[#This Row],[Bruttozahlung]]-Mitarbeiter[[#This Row],[Steuern und Abzüge]]-Mitarbeiter[[#This Row],[Sonstige Steuern und Abzüge]] -> 678.84 | N7: 20 | O7: 1 | P7: 0 | Q7: 0.023 | R7: 0.28 | S7: 0.063 | T7: 0.0145 | U7: =SUM(Mitarbeiter[[#This Row],[Gewerbesteuer]:[Krankenversicherung]]) -> 0.3805 | V7: 15 | X7: =SUM(Mitarbeiter[[#This Row],[Abzüge für Versicherungen]:[Sonstige reguläre Abzüge]]) -> 15
B8: 1011 | C8: Isabella Schumann | D8: 40 | G8: 2 | H8: 15 | I8: =SUM(Mitarbeiter[[#This Row],[Reguläre Arbeitsstunden]:[Krankheitsstunden]])*Mitarbeiter[[#This Row],[Stundenlohn]]+Mitarbeiter[[#This Row],[Überstunden]]*Mitarbeiter[[#This Row],[Überstundensatz]] -> 430 | J8: =Mitarbeiter[[#This Row],[Bruttozahlung]]*Mitarbeiter[[#This Row],[Einbehaltene Steuern gesamt]]+ Mitarbeiter[[#This Row],[Reguläre Abzüge gesamt]] -> 223.615 | L8: =Mitarbeiter[[#This Row],[Bruttozahlung]]-Mitarbeiter[[#This Row],[Steuern und Abzüge]]-Mitarbeiter[[#This Row],[Sonstige Steuern und Abzüge]] -> 206.385 | N8: 10 | O8: 1 | P8: 0 | Q8: 0.023 | R8: 0.28 | S8: 0.063 | T8: 0.0145 | U8: =SUM(Mitarbeiter[[#This Row],[Gewerbesteuer]:[Krankenversicherung]]) -> 0.3805 | V8: 20 | W8: 40 | X8: =SUM(Mitarbeiter[[#This Row],[Abzüge für Versicherungen]:[Sonstige reguläre Abzüge]]) -> 60
B9: 1012 | C9: David Bergmann | D9: 40 | E9: 5 | F9: 1 | I9: =SUM(Mitarbeiter[[#This Row],[Reguläre Arbeitsstunden]:[Krankheitsstunden]])*Mitarbeiter[[#This Row],[Stundenlohn]]+Mitarbeiter[[#This Row],[Überstunden]]*Mitarbeiter[[#This Row],[Überstundensatz]] -> 552 | J9: =Mitarbeiter[[#This Row],[Bruttozahlung]]*Mitarbeiter[[#This Row],[Einbehaltene Steuern gesamt]]+ Mitarbeiter[[#This Row],[Reguläre Abzüge gesamt]] -> 270.036 | L9: =Mitarbeiter[[#This Row],[Bruttozahlung]]-Mitarbeiter[[#This Row],[Steuern und Abzüge]]-Mitarbeiter[[#This Row],[Sonstige Steuern und Abzüge]] -> 281.964 | N9: 12 | O9: 1 | P9: 4 | Q9: 0.023 | R9: 0.28 | S9: 0.063 | T9: 0.0145 | U9: =SUM(Mitarbeiter[[#This Row],[Gewerbesteuer]:[Krankenversicherung]]) -> 0.3805 | V9: 20 | W9: 40 | X9: =SUM(Mitarbeiter[[#This Row],[Abzüge für Versicherungen]:[Sonstige reguläre Abzüge]]) -> 60
B10: 1025 | C10: Anne Weiler | D10: 36 | F10: 2 | G10: 1 | H10: 18 | I10: =SUM(Mitarbeiter[[#This Row],[Reguläre Arbeitsstunden]:[Krankheitsstunden]])*Mitarbeiter[[#This Row],[Stundenlohn]]+Mitarbeiter[[#This Row],[Überstunden]]*Mitarbeiter[[#This Row],[Überstundensatz]] -> 474 | J10: =Mitarbeiter[[#This Row],[Bruttozahlung]]*Mitarbeiter[[#This Row],[Einbehaltene Steuern gesamt]]+ Mitarbeiter[[#This Row],[Reguläre Abzüge gesamt]] -> 225.357 | K10: 25 | L10: =Mitarbeiter[[#This Row],[Bruttozahlung]]-Mitarbeiter[[#This Row],[Steuern und Abzüge]]-Mitarbeiter[[#This Row],[Sonstige Steuern und Abzüge]] -> 223.643 | N10: 12 | O10: 1 | P10: 2 | Q10: 0.023 | R10: 0.28 | S10: 0.063 | T10: 0.0145 | U10: =SUM(Mitarbeiter[[#This Row],[Gewerbesteuer]:[Krankenversicherung]]) -> 0.3805 | V10: 25 | W10: 20 | X10: =SUM(Mitarbeiter[[#This Row],[Abzüge für Versicherungen]:[Sonstige reguläre Abzüge]]) -> 45
B11: 1032 | C11: Lukas Albrecht | D11: 40 | E11: 5 | F11: 1 | I11: =SUM(Mitarbeiter[[#This Row],[Reguläre Arbeitsstunden]:[Krankheitsstunden]])*Mitarbeiter[[#This Row],[Stundenlohn]]+Mitarbeiter[[#This Row],[Überstunden]]*Mitarbeiter[[#This Row],[Überstundensatz]] -> 460 | J11: =Mitarbeiter[[#This Row],[Bruttozahlung]]*Mitarbeiter[[#This Row],[Einbehaltene Steuern gesamt]]+ Mitarbeiter[[#This Row],[Reguläre Abzüge gesamt]] -> 175.03 | K11: 50 | L11: =Mitarbeiter[[#This Row],[Bruttozahlung]]-Mitarbeiter[[#This Row],[Steuern und Abzüge]]-Mitarbeiter[[#This Row],[Sonstige Steuern und Abzüge]] -> 234.97 | N11: 10 | O11: 1 | P11: 3 | Q11: 0.023 | R11: 0.28 | S11: 0.063 | T11: 0.0145 | U11: =SUM(Mitarbeiter[[#This Row],[Gewerbesteuer]:[Krankenversicherung]]) -> 0.3805 | X11: =SUM(Mitarbeiter[[#This Row],[Abzüge für Versicherungen]:[Sonstige reguläre Abzüge]]) -> 0
B12: 1049 | C12: David Ludwig | D12: 40 | E12: 1 | I12: =SUM(Mitarbeiter[[#This Row],[Reguläre Arbeitsstunden]:[Krankheitsstunden]])*Mitarbeiter[[#This Row],[Stundenlohn]]+Mitarbeiter[[#This Row],[Überstunden]]*Mitarbeiter[[#This Row],[Überstundensatz]] -> 615 | J12: =Mitarbeiter[[#This Row],[Bruttozahlung]]*Mitarbeiter[[#This Row],[Einbehaltene Steuern gesamt]]+ Mitarbeiter[[#This Row],[Reguläre Abzüge gesamt]] -> 259.0075 | K12: 23 | L12: =Mitarbeiter[[#This Row],[Bruttozahlung]]-Mitarbeiter[[#This Row],[Steuern und Abzüge]]-Mitarbeiter[[#This Row],[Sonstige Steuern und Abzüge]] -> 332.9925 | N12: 15 | O12: 1 | P12: 2 | Q12: 0.023 | R12: 0.28 | S12: 0.063 | T12: 0.0145 | U12: =SUM(Mitarbeiter[[#This Row],[Gewerbesteuer]:[Krankenversicherung]]) -> 0.3805 | V12: 25 | X12: =SUM(Mitarbeiter[[#This Row],[Abzüge für Versicherungen]:[Sonstige reguläre Abzüge]]) -> 25
B13: Summen | C13: =SUBTOTAL(103,Mitarbeiter[Name des Mitarbeiters]) -> 9 | D13: =SUBTOTAL(109,Mitarbeiter[Reguläre Arbeitsstunden]) -> 371 | E13: =SUBTOTAL(109,Mitarbeiter[Urlaubsstunden]) -> 24 | F13: =SUBTOTAL(109,Mitarbeiter[Krankheitsstunden]) -> 6 | G13: =SUBTOTAL(109,Mitarbeiter[Überstunden]) -> 3 | I13: =SUBTOTAL(109,Mitarbeiter[Bruttozahlung]) -> 5063 | J13: =SUBTOTAL(109,Mitarbeiter[Steuern und Abzüge]) -> 2239.4715 | K13: =SUBTOTAL(109,Mitarbeiter[Sonstige Steuern und Abzüge]) -> 118 | L13: =SUBTOTAL(109,Mitarbeiter[Nettozahlung]) -> 2705.5285 | V13: =SUBTOTAL(109,Mitarbeiter[Abzüge für Versicherungen]) -> 143 | W13: =SUBTOTAL(109,Mitarbeiter[Sonstige reguläre Abzüge]) -> 170 | X13: =SUBTOTAL(109,Mitarbeiter[Reguläre Abzüge gesamt]) -> 313

Sheet Lohnabrechnungen_Vorlage (hidden)
C2: =Firma -> ADVENTURE WORKS
C3: ZEITRAUM | D3: =ZeitraumEndet -> 41372 | G3: NAME | H3: =IFERROR(INDEX(Mitarbeiter[Name des Mitarbeiters],Abrechnung),"") -> Thorsten Scholl | K3: MITARBEITER-ID | L3: =IFERROR(INDEX(Mitarbeiter[ID],Abrechnung),"") -> 1001
C4: Steuerstatus | E4: =IFERROR(INDEX(Mitarbeiter[Steuerstatus],Abrechnung),"") -> 1 | G4: Staatliche Beihilfen (aus Riester) | I4: =IFERROR(INDEX(Mitarbeiter[Staat. Zulage],Abrechnung),"") -> 4 | K4: Arbeitsstunden | M4: =IFERROR(INDEX(Mitarbeiter[Reguläre Arbeitsstunden],Abrechnung),"") -> 50
C5: Stundensatz | E5: =IFERROR(INDEX(Mitarbeiter[Stundenlohn],Abrechnung),"") -> 10 | G5: Überstundensatz | I5: =IFERROR(INDEX(Mitarbeiter[Überstundensatz],Abrechnung),"") -> 0 | K5: Krankheitsstunden | M5: =IFERROR(INDEX(Mitarbeiter[Krankheitsstunden],Abrechnung),"") -> 1
C6: Altersvorsorge | E6: =IFERROR(INDEX(Mitarbeiter[Altersvorsorge],Abrechnung) * INDEX(Mitarbeiter[Bruttozahlung],Abrechnung),"") -> 35.28 | G6: Einkommensteuer | I6: =IFERROR(INDEX(Mitarbeiter[Einkommensteuer],Abrechnung) * INDEX(Mitarbeiter[Bruttozahlung],Abrechnung),"") -> 156.8 | K6: Urlaubsstunden | M6: =IFERROR(INDEX(Mitarbeiter[Urlaubsstunden],Abrechnung),"") -> 5
C7: Krankenversicherung | E7: =IFERROR(INDEX(Mitarbeiter[Krankenversicherung],Abrechnung) * INDEX(Mitarbeiter[Bruttozahlung],Abrechnung),"") -> 8.12 | G7: Gewerbesteuer | I7: =IFERROR(INDEX(Mitarbeiter[Gewerbesteuer],Abrechnung) * INDEX(Mitarbeiter[Bruttozahlung],Abrechnung),"") -> 12.88 | K7: Überstunden | M7: =IFERROR(INDEX(Mitarbeiter[Überstunden],Abrechnung),"") -> 0
C8: Abzüge für Versicherungen | E8: =IFERROR(INDEX(Mitarbeiter[Abzüge für Versicherungen],Abrechnung),"") -> 20 | G8: Sonstige reguläre Abzüge | I8: =IFERROR(INDEX(Mitarbeiter[Sonstige reguläre Abzüge],Abrechnung),"") -> 40 | K8: Bruttozahlung | M8: =IFERROR(INDEX(Mitarbeiter[Bruttozahlung],Abrechnung),"") -> 560
C9: Gesamte Steuern und | E9: =IFERROR(INDEX(Mitarbeiter[Steuern und Abzüge],Abrechnung),"") -> 273.08 | G9: Sonstige Abzüge | I9: =IFERROR(INDEX(Mitarbeiter[Sonstige Steuern und Abzüge],Abrechnung),"") -> 20 | K9: Steuern und Abzüge gesamt | M9: =IFERROR(INDEX(Mitarbeiter[Steuern und Abzüge],Abrechnung) + INDEX(Mitarbeiter[Sonstige Steuern und Abzüge],Abrechnung),"") -> 293.08
C10: reguläre Abzüge
K11: NETTOZAHLUNG | M11: =IFERROR(INDEX(Mitarbeiter[Nettozahlung],Abrechnung),"") -> 266.92
C14: =Firma -> ADVENTURE WORKS
C15: ZEITRAUM | D15: =ZeitraumEndet -> 41372 | G15: NAME | H15: =IFERROR(INDEX(Mitarbeiter[Name des Mitarbeiters],Abrechnung),"") -> David Probst | K15: MITARBEITER-ID | L15: =IFERROR(INDEX(Mitarbeiter[ID],Abrechnung),"") -> 1002
C16: Steuerstatus | E16: =IFERROR(INDEX(Mitarbeiter[Steuerstatus],Abrechnung),"") -> 1 | G16: Staatliche Beihilfen (aus Riester) | I16: =IFERROR(INDEX(Mitarbeiter[Staat. Zulage],Abrechnung),"") -> 1 | K16: Arbeitsstunden | M16: =IFERROR(INDEX(Mitarbeiter[Reguläre Arbeitsstunden],Abrechnung),"") -> 40
C17: Stundensatz | E17: =IFERROR(INDEX(Mitarbeiter[Stundenlohn],Abrechnung),"") -> 8 | G17: Überstundensatz | I17: =IFERROR(INDEX(Mitarbeiter[Überstundensatz],Abrechnung),"") -> 0 | K17: Krankheitsstunden | M17: =IFERROR(INDEX(Mitarbeiter[Krankheitsstunden],Abrechnung),"") -> 0
C18: Altersvorsorge | E18: =IFERROR(INDEX(Mitarbeiter[Altersvorsorge],Abrechnung) * INDEX(Mitarbeiter[Bruttozahlung],Abrechnung),"") -> 20.16 | G18: Einkommensteuer | I18: =IFERROR(INDEX(Mitarbeiter[Einkommensteuer],Abrechnung) * INDEX(Mitarbeiter[Bruttozahlung],Abrechnung),"") -> 89.6 | K18: Urlaubsstunden | M18: =IFERROR(INDEX(Mitarbeiter[Urlaubsstunden],Abrechnung),"") -> 0
C19: Krankenversicherung | E19: =IFERROR(INDEX(Mitarbeiter[Krankenversicherung],Abrechnung) * INDEX(Mitarbeiter[Bruttozahlung],Abrechnung),"") -> 4.64 | G19: Gewerbesteuer | I19: =IFERROR(INDEX(Mitarbeiter[Gewerbesteuer],Abrechnung) * INDEX(Mitarbeiter[Bruttozahlung],Abrechnung),"") -> 7.36 | K19: Überstunden | M19: =IFERROR(INDEX(Mitarbeiter[Überstunden],Abrechnung),"") -> 0
C20: Abzüge für Versicherungen | E20: =IFERROR(INDEX(Mitarbeiter[Abzüge für Versicherungen],Abrechnung),"") -> 0 | G20: Sonstige reguläre Abzüge | I20: =IFERROR(INDEX(Mitarbeiter[Sonstige reguläre Abzüge],Abrechnung),"") -> 10 | K20: Bruttozahlung | M20: =IFERROR(INDEX(Mitarbeiter[Bruttozahlung],Abrechnung),"") -> 320
C21: Gesamte Steuern und | E21: =IFERROR(INDEX(Mitarbeiter[Steuern und Abzüge],Abrechnung),"") -> 131.76 | G21: Sonstige Abzüge | I21: =IFERROR(INDEX(Mitarbeiter[Sonstige Steuern und Abzüge],Abrechnung),"") -> 0 | K21: Steuern und Abzüge gesamt | M21: =IFERROR(INDEX(Mitarbeiter[Steuern und Abzüge],Abrechnung) + INDEX(Mitarbeiter[Sonstige Steuern und Abzüge],Abrechnung),"") -> 131.76
C22: reguläre Abzüge
K23: NETTOZAHLUNG | M23: =IFERROR(INDEX(Mitarbeiter[Nettozahlung],Abrechnung),"") -> 188.24
C26: =Firma -> ADVENTURE WORKS
C27: ZEITRAUM | D27: =ZeitraumEndet -> 41372 | G27: NAME | H27: =IFERROR(INDEX(Mitarbeiter[Name des Mitarbeiters],Abrechnung),"") -> Anja Richter | K27: MITARBEITER-ID | L27: =IFERROR(INDEX(Mitarbeiter[ID],Abrechnung),"") -> 1003
C28: Steuerstatus | E28: =IFERROR(INDEX(Mitarbeiter[Steuerstatus],Abrechnung),"") -> 1 | G28: Staatliche Beihilfen (aus Riester) | I28: =IFERROR(INDEX(Mitarbeiter[Staat. Zulage],Abrechnung),"") -> 3 | K28: Arbeitsstunden | M28: =IFERROR(INDEX(Mitarbeiter[Reguläre Arbeitsstunden],Abrechnung),"") -> 35
C29: Stundensatz | E29: =IFERROR(INDEX(Mitarbeiter[Stundenlohn],Abrechnung),"") -> 14 | G29: Überstundensatz | I29: =IFERROR(INDEX(Mitarbeiter[Überstundensatz],Abrechnung),"") -> 0 | K29: Krankheitsstunden | M29: =IFERROR(INDEX(Mitarbeiter[Krankheitsstunden],Abrechnung),"") -> 0
C30: Altersvorsorge | E30: =IFERROR(INDEX(Mitarbeiter[Altersvorsorge],Abrechnung) * INDEX(Mitarbeiter[Bruttozahlung],Abrechnung),"") -> 33.516 | G30: Einkommensteuer | I30: =IFERROR(INDEX(Mitarbeiter[Einkommensteuer],Abrechnung) * INDEX(Mitarbeiter[Bruttozahlung],Abrechnung),"") -> 148.96 | K30: Urlaubsstunden | M30: =IFERROR(INDEX(Mitarbeiter[Urlaubsstunden],Abrechnung),"") -> 3
C31: Krankenversicherung | E31: =IFERROR(INDEX(Mitarbeiter[Krankenversicherung],Abrechnung) * INDEX(Mitarbeiter[Bruttozahlung],Abrechnung),"") -> 7.714 | G31: Gewerbesteuer | I31: =IFERROR(INDEX(Mitarbeiter[Gewerbesteuer],Abrechnung) * INDEX(Mitarbeiter[Bruttozahlung],Abrechnung),"") -> 12.236 | K31: Überstunden | M31: =IFERROR(INDEX(Mitarbeiter[Überstunden],Abrechnung),"") -> 0
C32: Abzüge für Versicherungen | E32: =IFERROR(INDEX(Mitarbeiter[Abzüge für Versicherungen],Abrechnung),"") -> 18 | G32: Sonstige reguläre Abzüge | I32: =IFERROR(INDEX(Mitarbeiter[Sonstige reguläre Abzüge],Abrechnung),"") -> 20 | K32: Bruttozahlung | M32: =IFERROR(INDEX(Mitarbeiter[Bruttozahlung],Abrechnung),"") -> 532
C33: Gesamte Steuern und | E33: =IFERROR(INDEX(Mitarbeiter[Steuern und Abzüge],Abrechnung),"") -> 240.426 | G33: Sonstige Abzüge | I33: =IFERROR(INDEX(Mitarbeiter[Sonstige Steuern und Abzüge],Abrechnung),"") -> 0 | K33: Steuern und Abzüge gesamt | M33: =IFERROR(INDEX(Mitarbeiter[Steuern und Abzüge],Abrechnung) + INDEX(Mitarbeiter[Sonstige Steuern und Abzüge],Abrechnung),"") -> 240.426
C34: reguläre Abzüge
K35: NETTOZAHLUNG | M35: =IFERROR(INDEX(Mitarbeiter[Nettozahlung],Abrechnung),"") -> 291.574
C38: =Firma -> ADVENTURE WORKS
C39: ZEITRAUM | D39: =ZeitraumEndet -> 41372 | G39: NAME | H39: =IFERROR(INDEX(Mitarbeiter[Name des Mitarbeiters],Abrechnung),"") -> Sebastian Mäurer | K39: MITARBEITER-ID | L39: =IFERROR(INDEX(Mitarbeiter[ID],Abrechnung),"") -> 1008
C40: Steuerstatus | E40: =IFERROR(INDEX(Mitarbeiter[Steuerstatus],Abrechnung),"") -> 1 | G40: Staatliche Beihilfen (aus Riester) | I40: =IFERROR(INDEX(Mitarbeiter[Staat. Zulage],Abrechnung),"") -> 0 | K40: Arbeitsstunden | M40: =IFERROR(INDEX(Mitarbeiter[Reguläre Arbeitsstunden],Abrechnung),"") -> 50
C41: Stundensatz | E41: =IFERROR(INDEX(Mitarbeiter[Stundenlohn],Abrechnung),"") -> 20 | G41: Überstundensatz | I41: =IFERROR(INDEX(Mitarbeiter[Überstundensatz],Abrechnung),"") -> 0 | K41: Krankheitsstunden | M41: =IFERROR(INDEX(Mitarbeiter[Krankheitsstunden],Abrechnung),"") -> 1
C42: Altersvorsorge | E42: =IFERROR(INDEX(Mitarbeiter[Altersvorsorge],Abrechnung) * INDEX(Mitarbeiter[Bruttozahlung],Abrechnung),"") -> 70.56 | G42: Einkommensteuer | I42: =IFERROR(INDEX(Mitarbeiter[Einkommensteuer],Abrechnung) * INDEX(Mitarbeiter[Bruttozahlung],Abrechnung),"") -> 313.6 | K42: Urlaubsstunden | M42: =IFERROR(INDEX(Mitarbeiter[Urlaubsstunden],Abrechnung),"") -> 5
C43: Krankenversicherung | E43: =IFERROR(INDEX(Mitarbeiter[Krankenversicherung],Abrechnung) * INDEX(Mitarbeiter[Bruttozahlung],Abrechnung),"") -> 16.24 | G43: Gewerbesteuer | I43: =IFERROR(INDEX(Mitarbeiter[Gewerbesteuer],Abrechnung) * INDEX(Mitarbeiter[Bruttozahlung],Abrechnung),"") -> 25.76 | K43: Überstunden | M43: =IFERROR(INDEX(Mitarbeiter[Überstunden],Abrechnung),"") -> 0
C44: Abzüge für Versicherungen | E44: =IFERROR(INDEX(Mitarbeiter[Abzüge für Versicherungen],Abrechnung),"") -> 15 | G44: Sonstige reguläre Abzüge | I44: =IFERROR(INDEX(Mitarbeiter[Sonstige reguläre Abzüge],Abrechnung),"") -> 0 | K44: Bruttozahlung | M44: =IFERROR(INDEX(Mitarbeiter[Bruttozahlung],Abrechnung),"") -> 1120
C45: Gesamte Steuern und | E45: =IFERROR(INDEX(Mitarbeiter[Steuern und Abzüge],Abrechnung),"") -> 441.16 | G45: Sonstige Abzüge | I45: =IFERROR(INDEX(Mitarbeiter[Sonstige Steuern und Abzüge],Abrechnung),"") -> 0 | K45: Steuern und Abzüge gesamt | M45: =IFERROR(INDEX(Mitarbeiter[Steuern und Abzüge],Abrechnung) + INDEX(Mitarbeiter[Sonstige Steuern und Abzüge],Abrechnung),"") -> 441.16
C46: reguläre Abzüge
K47: NETTOZAHLUNG | M47: =IFERROR(INDEX(Mitarbeiter[Nettozahlung],Abrechnung),"") -> 678.84
